bitfinex/quotes_ETHUSD_20251009
["timestamp","ask_amount","ask_price","bid_price","bid_amount"]
[1760034049771,12.27877945,4334.2,4334.1,0.006]
[1760034051319,0.49646739,4334.2,4334.1,0.006]
[1760034051470,0.4079,4334.2,4334.1,0.006]
[1760034051684,0.4079,4334.5,4334.1,0.006]
[1760034052184,0.4079,4334.4,4334.1,0.006]
[1760034052903,0.4079,4334.3,4334.1,0.006]
[1760034054212,2.92909639,4334.8,4334.1,0.006]
[1760034054213,0.4079,4334.2,4334.1,0.006]
[1760034054508,3.21216682,4334.2,4334.1,0.006]
[1760034055025,3.83234802,4334.2,4334.1,0.006]
[1760034055222,3.21216682,4334.2,4334.1,0.006]
[1760034057406,3.83394289,4334.2,4334.1,0.006]
[1760034057611,3.21216682,4334.2,4334.1,0.006]
[1760034058713,3.83391198,4334.2,4334.1,0.006]
[1760034059208,1.52668112,4334.2,4334.1,0.006]
[1760034059417,3.83391198,4334.2,4334.1,0.006]
[1760034059944,3.9581746,4334.2,4334.1,0.006]
[1760034060119,3.83392272,4334.2,4334.1,0.006]
[1760034060289,3.21216682,4334.2,4334.1,0.006]
[1760034060490,3.83390619,4334.2,4334.1,0.006]
[1760034061624,15.14577108,4334.2,4334.1,0.006]
[1760034062517,15.97303135,4334.2,4334.1,0.006]
[1760034063903,2.30728409,4334.1,4333.6,0.001]
[1760034064114,5.27960983,4333.7,4333.6,0.001]
[1760034064316,5.77664579,4333.7,4333.6,0.001]
[1760034064501,6.18894579,4333.7,4333.6,0.001]
[1760034064706,11.88683301,4333.7,4333.6,0.001]
[1760034065298,12.71594579,4333.7,4333.6,0.001]
[1760034065731,11.88683301,4333.7,4333.6,0.001]
[1760034065932,12.71594579,4333.7,4333.6,0.001]
[1760034066100,11.88683301,4333.7,4333.6,0.001]
[1760034067521,13.11156144,4333.7,4333.6,0.001]
[1760034068233,11.88683301,4333.7,4333.6,0.001]
[1760034068402,13.11156144,4333.7,4333.6,0.001]
[1760034068595,13.74516144,4333.7,4333.6,0.001]
[1760034068799,12.52043301,4333.7,4333.6,0.001]
[1760034069746,12.52043301,4333.7,4332.3,0.001]
[1760034070043,2.3079231,4332.9,4332.3,0.001]
[1760034070336,12.08039391,4332.9,4332.3,0.001]
[1760034070534,11.66425906,4332.9,4332.3,0.001]
[1760034071043,13.54051134,4332.9,4332.3,0.001]
[1760034071199,13.54051134,4332.9,4331.1,0.005]
[1760034071200,2.30797636,4332.8,4331.1,0.005]
[1760034071403,16.16190027,4332.2,4332.1,1e-08]
[1760034071610,26.21953623,4332.2,4332.1,1e-08]
[1760034071921,26.21953623,4332.2,4331.1,0.005]
[1760034071922,2.94200258,4332.0,4331.1,0.005]
[1760034072121,13.12698402,4332.0,4331.1,0.005]
[1760034072427,2.30882896,4331.2,4331.1,0.005]
[1760034072611,2.30882896,4331.2,4330.8,0.001]
[1760034072612,13.85360426,4330.9,4330.8,0.001]
[1760034072807,23.18762911,4330.9,4330.8,0.001]
[1760034073146,11.66432485,4330.9,4330.8,0.001]
[1760034074104,4.63928889,4330.9,4330.8,0.001]
[1760034074336,11.16728889,4330.9,4330.8,0.001]
[1760034076841,4.63928889,4330.9,4330.8,0.001]
[1760034077054,0.4103,4330.9,4330.8,0.001]
[1760034077242,2.71928889,4330.9,4330.8,0.001]
[1760034081427,9.24928889,4330.9,4330.8,0.001]
[1760034081633,11.16928889,4330.9,4330.8,0.001]
[1760034082950,11.66275419,4330.9,4330.8,0.001]
[1760034083529,11.16928889,4330.9,4330.8,0.001]
[1760034083951,11.66278556,4330.9,4330.8,0.001]
[1760034084768,15.31448938,4330.9,4330.8,0.001]
[1760034085158,14.69738556,4330.9,4330.8,0.001]
[1760034086205,2.3090422,4330.8,4330.3,0.001]
[1760034086383,17.41338865,4330.4,4330.3,0.001]
[1760034086698,24.43888532,4330.4,4330.3,0.001]
[1760034086884,24.43888532,4330.4,4329.9,0.001]
[1760034086885,4.86306882,4330.0,4329.9,0.001]
[1760034087089,11.88856549,4330.0,4329.9,0.001]
[1760034087505,12.29886549,4330.0,4329.9,0.001]
[1760034088001,12.91581938,4330.0,4329.9,0.001]
[1760034088206,12.29886549,4330.0,4329.9,0.001]
[1760034091181,12.29886549,4330.0,4329.0,1e-08]
[1760034091182,2.30994895,4329.1,4329.0,1e-08]
[1760034091381,2.80344562,4329.1,4329.0,1e-08]
[1760034091676,11.67364562,4329.1,4329.0,1e-08]
[1760034091874,12.29065241,4329.1,4329.0,1e-08]
[1760034092386,11.67364562,4329.1,4329.0,1e-08]
[1760034094239,12.49591774,4329.1,4329.0,1e-08]
[1760034095131,11.67364562,4329.1,4329.0,1e-08]
[1760034095430,5.14164562,4329.1,4329.0,1e-08]
[1760034095628,12.49794384,4329.1,4329.0,1e-08]
[1760034096130,11.67464562,4329.1,4329.0,1e-08]
[1760034096528,5.14164562,4329.1,4329.0,1e-08]
[1760034096734,3.44941307,4329.1,4329.0,1e-08]
[1760034096898,0.49349667,4329.1,4329.0,1e-08]
[1760034097099,0.92279667,4329.1,4329.0,1e-08]
[1760034098208,0.49349667,4329.1,4329.0,1e-08]
[1760034098607,0.49349667,4329.1,4329.0,11.47721204]
[1760034098840,0.6177164,4329.9,4329.5,2.30972518]
[1760034099043,1.23340818,4330.4,4329.7,2.30962884]
[1760034099044,0.49478056,4329.8,4329.7,2.30962884]
[1760034099335,0.4315,4330.6,4329.6,2.76646375]
[1760034099336,0.49512756,4330.3,4329.6,2.76646375]
[1760034099516,0.49512756,4330.2,4329.7,2.30961246]
[1760034099704,0.49512756,4330.1,4329.8,8.936]
[1760034099908,3.35837556,4330.6,4329.8,8.936]
[1760034099909,2.30920422,4330.5,4329.8,8.936]
[1760034100098,0.49512317,4330.4,4329.8,8.936]
[1760034100303,0.6177164,4330.2,4329.3,2.402]
[1760034100521,3.85155505,4330.1,4329.4,6.534]
[1760034100722,0.49512317,4330.0,4329.4,6.534]
[1760034100936,0.49512317,4329.9,4329.4,7.2301273]
[1760034101148,0.005,4330.9,4329.4,7.2301273]
[1760034101149,0.49512317,4329.8,4329.5,2.30973553]
[1760034101348,0.1152,4329.9,4329.4,7.2301273]
[1760034101650,0.49570512,4329.8,4329.6,2.30968218]
[1760034101955,0.1152,4329.9,4329.6,2.30968218]
[1760034102156,0.49570502,4329.8,4329.6,2.74326908]
[1760034102455,0.1152,4329.9,4329.6,2.74326908]
[1760034102764,0.49573186,4329.8,4329.6,2.74326908]
[1760034102926,0.1152,4329.9,4329.6,2.74326908]
[1760034103121,0.49573183,4329.8,4329.6,2.74326908]
[1760034103346,0.1152,4329.9,4329.6,2.74326908]
[1760034104354,0.1152,4329.9,4329.7,2.30961003]
[1760034104587,0.1152,4329.9,4329.8,2.3095755]
[1760034104763,0.1152,4329.9,4329.7,2.71802767]
[1760034105423,0.1152,4329.9,4329.7,0.40840562]
[1760034106458,0.1152,4329.9,4329.7,2.7180272]
[1760034106761,0.1152,4329.9,4329.8,2.3095755]
[1760034107064,0.1152,4330.1,4329.9,2.30951634]
[1760034107262,0.1152,4330.1,4329.8,0.31516141]
[1760034107263,0.1152,4330.1,4330.0,8.84246882]
[1760034107472,0.1152,4330.3,4330.1,2.30939044]
[1760034107774,0.1152,4330.3,4330.2,2.401]
[1760034108501,0.1152,4330.3,4330.2,4.71036215]
[1760034108671,0.1152,4330.3,4330.2,2.401]
[1760034109195,0.1152,4330.6,4330.3,2.30930882]
[1760034109488,0.1152,4330.6,4330.2,3.7539]
[1760034109691,0.1152,4330.6,4330.5,2.30920217]
[1760034109862,0.1152,4330.6,4330.5,8.84220217]
[1760034110266,0.1152,4330.6,4330.5,6.533]
[1760034111595,0.5445,4330.6,4330.5,8.933]
[1760034114665,2.85364884,4330.6,4330.5,8.933]
[1760034114866,0.5445,4330.6,4330.5,8.933]
[1760034116514,0.5445,4330.6,4330.2,2.30934532]
[1760034116682,0.5445,4330.6,4329.7,0.5747]
[1760034116683,0.1152,4330.4,4330.3,8.933]
[1760034117006,0.1152,4330.4,4330.3,7.742]
[1760034117730,0.1152,4330.4,4330.3,11.25950882]
[1760034117884,0.002,4330.6,4330.3,10.82550882]
[1760034118211,0.002,4330.6,4330.4,2.30924476]
[1760034118510,0.002,4330.6,4330.5,2.30920217]
[1760034118889,0.002,4330.6,4329.3,1.09139282]
[1760034118890,0.4313,4330.6,4329.3,1.09139282]
[1760034119105,0.4313,4330.6,4330.0,2.30942104]
[1760034119293,0.4313,4330.6,4329.5,0.6336]
[1760034119294,0.4313,4330.6,4330.1,1.292]
[1760034119478,0.4293,4330.5,4330.2,2.401]
[1760034119683,0.4293,4330.4,4330.2,2.401]
[1760034119899,0.4293,4330.3,4330.2,2.401]
[1760034120140,0.4293,4330.3,4329.7,2.30960293]
[1760034120430,0.4293,4330.3,4330.2,2.401]
[1760034120724,0.4313,4330.6,4330.2,8.154]
[1760034120902,0.4293,4330.5,4330.2,8.154]
[1760034121109,0.4293,4330.4,4330.2,8.154]
[1760034121618,0.4293,4330.3,4330.2,8.154]
[1760034122207,0.002,4330.6,4330.2,8.154]
[1760034122508,0.002,4330.6,4330.5,2.30920217]
[1760034123306,0.002,4330.6,4330.2,8.9694]
[1760034123536,0.4293,4330.5,4330.2,8.154]
[1760034123842,0.4293,4330.4,4330.2,8.154]
[1760034124059,0.4293,4330.3,4329.4,2.46242543]
[1760034124213,0.4293,4330.2,4329.6,2.30968218]
[1760034124545,0.4293,4330.2,4329.5,8.33772633]
[1760034124755,0.4293,4330.2,4329.5,6.87703656]
[1760034124957,0.002,4330.6,4329.6,0.45709682]
[1760034125257,0.4293,4330.5,4329.6,0.02309682]
[1760034125756,0.002,4330.6,4329.6,0.02309682]
[1760034125921,0.002,4330.6,4330.1,2.30937805]
[1760034126124,0.4293,4330.5,4329.5,0.84903656]
[1760034126322,0.4293,4330.4,4330.0,2.30946882]
[1760034126521,0.4293,4330.3,4330.1,4.58]
[1760034127137,0.002,4330.6,4330.1,4.58]
[1760034127338,0.4293,4330.5,4330.2,8.932]
[1760034127538,0.4293,4330.4,4330.2,11.24133234]
[1760034127764,0.4293,4330.4,4330.2,8.932]
[1760034127965,0.002,4330.6,4330.2,8.932]
[1760034128261,0.002,4330.6,4330.5,2.30920217]
[1760034129161,0.002,4330.6,4330.4,2.30924727]
[1760034129532,0.002,4330.6,4330.2,10.28708982]
[1760034129735,0.4313,4330.6,4330.2,11.24134855]
[1760034130143,0.4313,4330.6,4330.3,2.30927743]
[1760034130346,0.002,4330.6,4330.5,2.30920217]
[1760034130580,0.002,4330.6,4330.2,11.24135831]
[1760034130739,0.002,4330.6,4330.2,8.932]
[1760034130938,0.002,4330.6,4330.4,2.30921946]
[1760034132446,0.002,4330.6,4330.5,2.74320217]
[1760034132849,0.002,4330.6,4330.5,2.30920217]
[1760034133361,0.002,4330.6,4330.3,2.3093026]
[1760034133567,0.002,4330.6,4330.4,2.30925075]
[1760034133750,0.002,4330.6,4330.5,2.30920217]
[1760034133951,0.002,4330.6,4330.2,9.83672]
[1760034134481,0.002,4330.6,4330.4,2.30924289]
[1760034134684,0.002,4330.6,4330.5,6.531]
[1760034135169,0.4292,4330.6,4330.5,6.531]
[1760034135577,0.4292,4330.6,4330.2,5.6150736]
[1760034135578,2.73836812,4330.6,4330.3,2.401]
[1760034138276,0.4272,4330.5,4330.4,6.531]
[1760034138480,0.1152,4330.4,4330.1,0.001]
[1760034138681,2.80763496,4330.3,4330.2,0.005]
[1760034138866,3.23483496,4330.3,4330.2,0.005]
[1760034139459,2.42456215,4330.2,4330.1,0.001]
[1760034139674,2.92288829,4330.2,4330.1,0.001]
[1760034140158,3.35008829,4330.2,4330.1,0.001]
[1760034144964,1.92,4330.3,4330.1,0.001]
[1760034145164,0.4272,4330.2,4330.1,0.001]
[1760034145586,2.73656215,4330.2,4330.1,0.001]
[1760034146101,0.4272,4330.2,4330.1,0.001]
[1760034146681,2.73656215,4330.2,4330.1,0.001]
[1760034146877,0.4272,4330.2,4330.1,0.001]
[1760034147268,2.73656215,4330.2,4330.1,0.001]
[1760034147986,1.92,4330.3,4330.1,0.001]
[1760034148407,2.3472,4330.3,4330.1,0.001]
[1760034149105,0.4272,4330.2,4330.1,0.001]
[1760034149318,2.73656215,4330.2,4330.1,0.001]
[1760034150490,0.4272,4330.2,4330.1,0.001]
[1760034151875,1.92,4330.3,4330.1,0.001]
[1760034152081,0.92650307,4330.6,4330.1,0.001]
[1760034152282,1.92,4330.5,4330.1,0.001]
[1760034152521,0.1152,4330.2,4330.1,0.001]
[1760034153025,0.5424,4330.2,4330.1,0.001]
[1760034153185,2.85176215,4330.2,4330.1,6.533]
[1760034153801,0.5424,4330.2,4330.1,6.533]
[1760034156296,0.1152,4330.2,4330.1,6.533]
[1760034156619,0.5424,4330.2,4330.1,6.533]
[1760034160094,2.85176215,4330.2,4330.1,6.533]
[1760034160495,2.85176215,4330.2,4330.1,0.001]
[1760034165217,3.34911364,4330.2,4330.1,0.001]
[1760034166244,2.85176215,4330.2,4330.1,0.001]
[1760034166449,3.34911364,4330.2,4330.1,0.001]
[1760034167353,5.26911364,4330.2,4330.1,0.001]
[1760034167845,6.18521457,4330.2,4330.1,0.001]
[1760034168044,5.36157684,4330.2,4330.1,0.001]
[1760034171148,5.98418774,4330.2,4330.1,0.001]
[1760034171348,5.89172454,4330.2,4330.1,0.001]
[1760034171553,5.26911364,4330.2,4330.1,0.001]
[1760034171849,0.49735149,4330.2,4330.1,4.045]
[1760034172072,0.49735149,4330.4,4330.1,4.4495]
[1760034172235,0.92455149,4330.3,4330.1,4.045]
[1760034172433,0.002,4330.5,4330.1,4.045]
[1760034172434,0.49735149,4330.4,4330.1,4.045]
[1760034172639,0.92455149,4330.3,4330.1,4.045]
[1760034172821,2.31120384,4330.5,4330.1,4.045]
[1760034172822,0.4272,4330.2,4330.1,4.045]
[1760034173421,2.73656215,4330.2,4330.1,4.045]
[1760034173663,0.92455149,4330.2,4330.1,4.045]
[1760034173863,0.4272,4330.2,4330.1,4.045]
[1760034174228,0.92455149,4330.2,4330.1,4.045]
[1760034174436,0.4272,4330.2,4330.1,4.045]
[1760034174663,2.73656215,4330.2,4330.1,4.045]
[1760034174982,2.73656215,4330.2,4330.1,0.001]
[1760034175126,2.73656215,4330.2,4329.6,0.001]
[1760034175127,2.30941548,4330.1,4329.6,0.001]
[1760034175326,0.6336,4329.5,4329.2,0.001]
[1760034175527,8.1127723,4329.3,4329.2,0.001]
[1760034175723,5.34995311,4329.3,4329.2,0.001]
[1760034176030,5.99189924,4329.3,4329.2,0.001]
[1760034176267,5.36913985,4329.3,4329.2,0.001]
[1760034176573,5.15239372,4329.3,4329.2,0.001]
[1760034177248,0.92255149,4329.3,4329.2,0.001]
[1760034177656,0.4252,4329.3,4329.2,0.001]
[1760034178061,2.73504223,4329.3,4329.2,0.001]
[1760034178361,3.23239372,4329.3,4329.2,0.001]
[1760034178559,2.73504223,4329.3,4329.2,0.001]
[1760034179160,0.92255149,4329.3,4329.2,0.001]
[1760034179351,0.4252,4329.3,4329.2,0.001]
[1760034179784,8.5379723,4329.3,4329.2,0.001]
[1760034179986,5.15239372,4329.3,4329.2,0.001]
[1760034180297,2.84255149,4329.3,4329.2,0.001]
[1760034180497,5.15239372,4329.3,4329.2,0.001]
[1760034181199,9.03532379,4329.3,4329.2,0.001]
[1760034181568,9.65808318,4329.3,4329.2,0.001]
[1760034181764,9.03532379,4329.3,4329.2,0.001]
[1760034181979,9.66892379,4329.3,4329.2,0.001]
[1760034182176,16.45466965,4329.3,4329.2,0.001]
[1760034182396,15.62432379,4329.3,4329.2,0.001]
[1760034183400,15.62432379,4329.3,4328.6,0.001]
[1760034183401,2.31034485,4328.4,4327.1,0.005]
[1760034183604,0.2222,4327.2,4327.1,0.005]
[1760034183807,1.92,4327.8,4327.1,0.005]
[1760034183965,0.49703092,4327.8,4327.1,0.005]
[1760034184165,2.31085159,4327.5,4327.1,0.005]
[1760034184473,2.31086798,4327.4,4327.1,0.005]
[1760034184674,2.31092879,4327.3,4327.1,0.005]
[1760034184878,0.4232,4327.3,4327.1,0.005]
[1760034185404,3.88293007,4328.1,4327.1,0.005]
[1760034185405,0.1152,4327.5,4327.1,0.005]
[1760034185605,0.1152,4327.5,4327.2,2.402]
[1760034185765,0.1152,4327.5,4327.3,0.2407]
[1760034185972,3.88293007,4328.5,4327.3,0.2407]
[1760034185973,0.4232,4328.3,4327.4,5.01996496]
[1760034186171,0.1152,4327.8,4327.4,2.686]
[1760034186792,0.5384,4327.8,4327.4,2.686]
[1760034187720,0.4232,4327.7,4327.4,2.686]
[1760034188075,0.1152,4327.8,4327.5,0.02310803]
[1760034188606,0.1152,4327.8,4327.5,2.33389665]
[1760034188814,0.62124834,4329.2,4327.4,3.21937]
[1760034188815,3.88293007,4328.1,4327.4,2.686]
[1760034188978,0.1152,4327.9,4327.5,2.31080228]
[1760034189176,0.1152,4327.9,4327.5,3.05067376]
[1760034189384,0.1152,4327.9,4327.7,2.31064641]
[1760034189595,0.1152,4327.9,4327.6,2.33383923]
[1760034190073,0.1152,4327.9,4327.5,3.05068167]
[1760034190708,0.1152,4327.9,4327.6,2.31074653]
[1760034190914,0.1152,4327.9,4327.6,3.16148996]
[1760034191110,0.1152,4327.9,4327.7,0.02310696]
[1760034191322,0.1152,4327.9,4327.6,0.85074343]
[1760034191529,0.1152,4327.9,4327.5,0.73988023]
[1760034191530,0.4232,4327.8,4327.4,2.686]
[1760034191679,0.1152,4327.7,4327.4,2.686]
[1760034192280,3.88293007,4327.7,4327.4,2.686]
[1760034192577,2.3432,4328.0,4327.4,2.686]
[1760034192976,2.73373961,4328.0,4327.4,2.686]
[1760034193608,2.31059789,4327.9,4327.4,2.686]
[1760034193909,0.4232,4328.0,4327.4,2.686]
[1760034194110,2.31061857,4327.9,4327.4,2.686]
[1760034194323,2.73385472,4327.8,4327.4,2.686]
[1760034195085,2.3432,4327.8,4327.4,2.686]
[1760034195921,0.4232,4327.8,4327.4,2.686]
[1760034196223,2.31054271,4328.0,4327.4,2.686]
[1760034196522,2.31059108,4327.9,4327.4,2.686]
[1760034196726,2.3432,4327.9,4327.4,2.686]
[1760034196925,2.31047484,4328.2,4327.4,3.1449]
[1760034197228,1.92,4328.3,4327.6,2.3107496]
[1760034197539,1.92,4328.3,4327.7,2.33377579]
[1760034197833,2.31038898,4328.3,4327.6,2.31074718]
[1760034197993,1.92,4328.8,4327.7,0.02310696]
[1760034197994,0.91909665,4328.7,4327.7,0.02310696]
[1760034198189,0.4232,4328.7,4327.8,2.31059118]
[1760034198398,2.31021577,4328.6,4327.8,2.31059118]
[1760034198820,2.31030195,4328.5,4327.8,2.31059118]
[1760034199032,2.31034035,4328.4,4327.6,2.31070841]
[1760034199330,2.31037589,4328.3,4327.5,2.310803]
[1760034199623,2.31037589,4328.3,4327.5,2.31075858]
[1760034199836,4.23000231,4329.0,4327.5,0.02310803]
[1760034199837,0.4232,4328.2,4327.5,0.02310803]
[1760034200137,2.31049838,4328.1,4327.4,4.99685517]
[1760034200292,0.4232,4328.2,4327.4,4.99685517]
[1760034200293,0.4232,4328.2,4327.4,2.686]
[1760034200727,2.3105278,4328.1,4327.4,2.686]
[1760034200930,2.3105278,4328.1,4327.4,4.99682522]
[1760034201130,0.4232,4328.2,4327.5,2.31078837]
[1760034201304,0.4232,4328.2,4327.6,2.31074405]
[1760034202136,2.73364001,4328.2,4327.5,2.31078919]
[1760034202331,0.4232,4328.2,4327.6,2.31074254]
[1760034202506,0.1152,4327.7,4327.6,2.31074254]
[1760034202827,0.1152,4327.7,4327.5,2.31079427]
[1760034203029,0.1152,4327.7,4327.4,4.99685104]
[1760034203932,0.1152,4327.7,4327.4,4.9968538]
[1760034204108,0.1152,4327.7,4327.4,2.686]
[1760034204843,0.11335494,4330.0,4327.5,0.48200803]
[1760034204844,0.1152,4328.1,4327.5,0.48200803]
[1760034205137,0.1152,4328.1,4327.6,2.3107111]
[1760034205439,0.1152,4328.1,4327.7,2.31067637]
[1760034206537,0.1152,4328.1,4327.6,2.31069694]
[1760034206705,0.1152,4328.1,4327.6,0.86331448]
[1760034206905,0.1152,4328.1,4327.7,0.46730696]
[1760034207117,0.1152,4328.1,4327.9,2.310589]
[1760034207346,0.1152,4328.1,4328.0,2.402]
[1760034207541,0.1152,4328.1,4328.0,2.42510536]
[1760034208331,4.42133007,4328.1,4327.6,0.001]
[1760034208642,0.92015771,4328.0,4327.6,0.001]
[1760034208833,0.1152,4327.8,4327.6,0.001]
[1760034209515,0.002,4328.2,4327.6,2.31174544]
[1760034209848,0.002,4328.2,4327.6,2.31172901]
[1760034209849,0.1172,4328.2,4327.6,2.31172901]
[1760034210055,0.61415771,4328.2,4327.7,2.31067982]
[1760034210359,0.61415771,4328.2,4327.8,2.31062939]
[1760034210532,0.1172,4328.2,4327.9,6.651]
[1760034210849,0.5404,4328.2,4327.9,6.651]
[1760034211020,0.4232,4328.1,4327.9,6.651]
[1760034211219,0.002,4328.2,4327.9,6.651]
[1760034211453,0.4232,4328.0,4327.9,6.651]
[1760034212131,0.002,4328.2,4327.9,6.651]
[1760034212322,0.4232,4328.1,4327.9,6.651]
[1760034212746,0.002,4328.2,4327.9,6.651]
[1760034213063,0.4232,4328.0,4327.9,6.651]
[1760034214553,0.49813343,4328.1,4327.9,6.651]
[1760034214759,0.1152,4328.0,4327.9,6.651]
[1760034215765,3.34720707,4328.0,4327.9,6.651]
[1760034215967,0.61347103,4328.0,4327.9,6.651]
[1760034216482,0.1152,4328.0,4327.9,6.651]
[1760034217234,3.34727385,4328.0,4327.9,6.651]
[1760034218384,1.03673781,4328.0,4327.9,6.651]
[1760034218990,3.34727385,4328.0,4327.9,6.651]
[1760034219562,1.03673781,4328.0,4327.9,6.651]
[1760034222855,0.49833781,4328.0,4327.9,8.96158943]
[1760034223055,0.1152,4328.0,4327.9,6.651]
[1760034223260,0.1152,4328.0,4327.9,8.96158943]
[1760034223598,0.5384,4328.0,4327.9,6.651]
[1760034224088,0.1152,4328.0,4327.9,8.96158943]
[1760034224800,0.1152,4328.0,4327.9,10.12026197]
[1760034224998,0.002,4328.2,4328.1,2.31048265]
[1760034230213,0.002,4328.2,4328.1,2.75258265]
[1760034230915,0.002,4328.2,4328.1,2.77568747]
[1760034231084,0.002,4328.2,4328.1,2.75258265]
[1760034231283,0.002,4328.2,4328.1,4.07130611]
[1760034231684,0.002,4328.2,4328.1,6.86691093]
[1760034231929,0.002,4328.2,4328.1,6.84380611]
[1760034233203,1e-08,4328.7,4328.2,4.86402927]
[1760034233415,1e-08,4328.7,4328.6,4.86381577]
[1760034233707,0.002,4329.1,4329.0,4.86360231]
[1760034233708,1e-08,4329.1,4329.0,4.86360231]
[1760034233905,1e-08,4329.1,4329.0,21.12060231]
[1760034234104,1e-08,4329.1,4329.0,21.56270231]
[1760034235026,1e-08,4329.1,4329.0,21.67790231]
[1760034235510,0.002,4330.6,4330.4,4.86285549]
[1760034235818,0.002,4330.6,4330.4,14.62707406]
[1760034236157,0.002,4330.6,4330.4,15.06917406]
[1760034238922,1e-08,4330.6,4330.5,4.86280217]
[1760034239132,1e-08,4330.6,4330.5,14.92470217]
[1760034239735,1e-08,4330.6,4330.5,15.3756262]
[1760034239957,1e-08,4330.6,4330.5,17.62739665]
[1760034240836,1e-08,4330.6,4330.5,17.17647262]
[1760034241036,0.002,4331.1,4330.9,4.86258889]
[1760034241256,0.002,4331.1,4330.9,11.50558889]
[1760034241622,0.002,4331.1,4330.9,11.96048889]
[1760034241960,0.002,4331.1,4330.9,13.38744442]
[1760034242856,1e-08,4331.1,4331.0,4.86253558]
[1760034243065,1e-08,4331.5,4331.4,2.94232235]
[1760034243206,1e-08,4331.5,4331.4,13.92740957]
[1760034243411,1e-08,4331.5,4331.4,14.35922235]
[1760034243682,1e-08,4331.5,4331.4,16.0260246]
[1760034244407,1e-08,4331.5,4331.4,1.92]
[1760034244632,1e-08,4331.5,4331.4,2.401]
[1760034244836,1e-08,4331.5,4331.4,9.065]
[1760034245450,1e-08,4331.5,4331.4,11.37372235]
[1760034245747,1e-08,4331.5,4331.4,9.065]
[1760034246650,1e-08,4331.5,4331.4,11.37372235]
[1760034246852,1e-08,4331.5,4331.4,12.00732235]
[1760034247036,1e-08,4331.5,4331.4,15.2543228]
[1760034250958,1e-08,4331.5,4331.4,14.7994228]
[1760034251180,1e-08,4331.5,4331.4,11.1002]
[1760034251658,1e-08,4331.5,4331.4,10.985]
[1760034252023,1e-08,4331.5,4331.4,13.29372235]
[1760034252256,1e-08,4331.5,4331.4,14.38222235]
[1760034252456,1e-08,4331.5,4331.4,16.17804738]
[1760034255148,1e-08,4331.5,4331.4,2.5536]
[1760034255345,1e-08,4331.5,4331.4,9.052]
[1760034255555,1e-08,4331.5,4331.4,10.972]
[1760034255755,1e-08,4331.5,4331.4,13.28072235]
[1760034255978,1e-08,4331.5,4331.4,14.36922235]
[1760034257684,1e-08,4331.5,4331.4,16.03702712]
[1760034260694,1e-08,4331.5,4331.0,2.4]
[1760034260906,1e-08,4331.5,4331.1,6.664]
[1760034261791,0.93657349,4331.4,4331.1,6.664]
[1760034262085,2.30872235,4331.4,4331.3,0.001]
[1760034262264,2.80412005,4331.4,4331.3,0.001]
[1760034262662,3.24532005,4331.4,4331.3,6.693]
[1760034263257,3.86261038,4331.4,4331.3,6.693]
[1760034264170,3.24532005,4331.4,4331.3,6.693]
[1760034265301,4.07566591,4331.4,4331.3,6.693]
[1760034265460,3.24532005,4331.4,4331.3,6.693]
[1760034266103,4.07566591,4331.4,4331.3,6.693]
[1760034267499,3.24532005,4331.4,4331.3,6.693]
[1760034269293,1.11562888,4331.4,4331.3,6.693]
[1760034269475,0.4953977,4331.4,4331.3,6.693]
[1760034270859,0.11520001,4331.5,4331.3,6.693]
[1760034271160,0.11520001,4331.5,4331.4,0.02308722]
[1760034271600,0.11520001,4331.5,4331.3,6.693]
[1760034271807,0.11520001,4331.5,4331.4,2.33180957]
[1760034271989,1e-08,4331.5,4331.4,2.77370957]
[1760034274021,1e-08,4331.5,4331.4,14.92930957]
[1760034274219,1e-08,4331.5,4331.4,15.02142235]
[1760034275316,1e-08,4331.9,4331.7,4.86216245]
[1760034275640,1e-08,4331.9,4331.8,14.82497049]
[1760034275807,1e-08,4331.9,4331.8,14.8018854]
[1760034276006,1e-08,4331.9,4331.8,15.2437854]
[1760034277844,1e-08,4331.9,4331.8,15.51657945]
[1760034279221,1e-08,4331.9,4331.8,15.2437854]
[1760034282654,0.002,4332.0,4331.9,4.86205587]
[1760034282828,0.002,4332.0,4331.9,7.0864594]
[1760034285066,0.002,4332.0,4331.9,7.55344079]
[1760034295736,0.002,4332.0,4331.9,35.80244079]
[1760034296267,0.002,4332.0,4331.9,35.80044079]
[1760034297179,0.002,4332.0,4331.9,7.55344079]
[1760034297373,0.002,4332.0,4331.9,22.01993726]
[1760034297581,0.002,4332.0,4331.9,34.01593726]
[1760034298486,0.002,4332.0,4331.9,5.77093726]
[1760034298793,0.002,4332.0,4331.9,34.01393726]
[1760034300290,1e-08,4332.5,4332.4,2.94178945]
[1760034300585,1e-08,4332.9,4332.8,2.94157636]
[1760034300755,1e-08,4332.9,4332.8,14.02277636]
[1760034300951,1e-08,4332.9,4332.8,14.49577636]
[1760034301951,1e-08,4332.9,4332.8,14.60923276]
[1760034303666,0.005,4333.9,4333.8,2.30744381]
[1760034303878,0.005,4333.9,4333.8,21.43301401]
[1760034304086,0.005,4333.9,4333.8,23.91813958]
[1760034305818,0.002,4334.6,4334.0,2.94093733]
[1760034305967,0.002,4334.6,4334.0,11.5260107]
[1760034306290,0.002,4334.6,4334.0,11.97593733]
[1760034306475,0.002,4334.6,4334.0,14.34290778]
[1760034309282,0.002,4334.6,4334.0,11.61413733]
[1760034309485,0.002,4334.6,4334.0,14.48613733]
[1760034314318,0.002,4334.6,4334.0,6.62533733]
[1760034314530,0.002,4334.6,4334.0,13.25733733]
[1760034316029,0.002,4334.6,4334.0,13.73033733]